[Event "94th Tradewise Hastings Congress"]
[Site "Hastings"]
[Date "2019.01.05"]
[Round "9"]
[White "Stefansson, Vignir Vatnar"]
[Black "Murphy, Conor E"]
[Result "1/2-1/2"]
[ECO "D37"]
[WhiteElo "2266"]
[BlackElo "2331"]
[Annotator "NA"]
[PlyCount "108"]
[EventDate "2018.12.28"]
[EventType "swiss"]
[EventCountry "ENG"]
[SourceTitle "playchess.com"]
[Source "ChessBase"]
[SourceQuality "1"]
[TimeControl "40/6000+30:3000+30"]

1. d4 {[%emt 0:00:00]} d5 {[%emt 0:03:38]} 2. c4 {[%emt 0:00:00]} e6 {[%emt 0:00:04]} 3. Nc3 {[%emt 0:00:00]} Nf6 {[%emt 0:00:22]} 4. Nf3 {[%emt 0:00:00]} Be7 {[%emt 0:00:18]} 5. Bf4 {[%emt 0:00:10]} O-O {[%emt 0:00:08]} 6. e3 {[%emt 0:00:07]} b6 {[%emt 0:00:09]} 7. cxd5 {[%emt 0:07:55]} Nxd5 {[%emt 0:00:26]} 8. Nxd5 {[%emt 0:03:11]} Qxd5 {[%emt 0:00:15]} 9. a3 {[%emt 0:00:13]} c5 {[%emt 0:01:54]} 10. dxc5 {[%emt 0:02:44]} Qxc5 {[%emt 0:00:56]} 11. Be2 {[%emt 0:12:21]} Rd8 {[%emt 0:06:17]} 12. Qc1 {[%emt 0:01:34]} Ba6 {[%emt 0:04:01]} 13. Qxc5 {[%emt 0:22:13]} Bxc5 {[%emt 0:01:02]} 14. b4 {[%emt 0:07:54]} Be7 {[%emt 0:08:29]} 15. Rc1 {[%emt 0:07:08]} Bf6 {[%emt 0:11:48]} 16. Bxb8 {[%emt 0:12:52]} Bxe2 {[%emt 0:00:25]} 17. Bc7 {[%emt 0:02:03]} Bxf3 {[%emt 0:02:11]} 18. Bxd8 {[%emt 0:00:42]} Bxg2 {[%emt 0:01:17]} 19. Rg1 {[%emt 0:00:08]} Bb2 {[%emt 0:11:43]} 20. Rc2 {[%emt 0:08:16]} Bxa3 {[%emt 0:16:49]} 21. Be7 {[%emt 0:00:18]} Bd5 {[%emt 0:10:13]} 22. Rc3 {[%emt 0:11:45]} Bb2 {[%emt 0:00:45]} 23. Rc2 {[%emt 0:00:01]} Re8 {[%emt 0:05:41]} 24. Ke2 {[%emt 0:02:51]} f5 {[%emt 0:01:01]} 25. Bd6 {[%emt 0:02:49]} Bf6 {[%emt 0:02:24]} 26. Rgc1 {[%emt 0:00:13]} g5 {[%emt 0:10:30]} 27. Rc8 {[%emt 0:00:06]} Rxc8 {[%emt 0:00:10]} 28. Rxc8+ {[%emt 0:00:02]} Kf7 {[%emt 0:00:16]} 29. b5 {[%emt 0:01:28]} e5 {[%emt 0:02:30]} 30. Bb8 {[%emt 0:00:31]} Bb3 {[%emt 0:00:50]} 31. Bxa7 {[%emt 0:01:33]} Ba4 {[%emt 0:00:11]} 32. Bxb6 {[%emt 0:00:14]} Bxb5+ {[%emt 0:00:04]} 33. Kf3 {[%emt 0:00:14]} Bf1 {[%emt 0:00:46]} 34. Rc1 {[%emt 0:01:28]} e4+ {[%emt 0:06:06]} 35. Kg3 {[%emt 0:00:01]} Be5+ {[%emt 0:00:34]} 36. f4 {[%emt 0:00:05]} exf3+ {[%emt 0:00:06]} 37. Kxf3 {[%emt 0:00:10]} Bd3 {[%emt 0:00:23]} 38. Bc7 {[%emt 0:00:33]} Be4+ {[%emt 0:00:11]} 39. Kf2 {[%emt 0:00:08]} Bxc7 {[%emt 0:01:15]} 40. Rxc7+ {[%emt 0:00:01]} Kg6 {[%emt 0:00:06]} 41. Kg3 {[%emt 0:51:03]} h6 {[%emt 0:52:31]} 42. Ra7 {[%emt 0:00:00]} Bd3 {[%emt 0:00:00]} 43. Rb7 {[%emt 0:00:00]} Be4 {[%emt 0:00:00]} 44. Rb6+ {[%emt 0:00:00]} Kg7 {[%emt 0:00:00]} 45. h4 {[%emt 0:00:00]} Bd3 {[%emt 0:00:00]} 46. Rd6 {[%emt 0:00:00]} Bc2 {[%emt 0:00:00]} 47. h5 {[%emt 0:00:00]} Be4 {[%emt 0:00:00]} 48. Kf2 {[%emt 0:00:00]} Bc2 {[%emt 0:00:00]} 49. Rd7+ {[%emt 0:00:00]} Kg8 {[%emt 0:00:00]} 50. Ke2 {[%emt 0:00:00]} Bb3 {[%emt 0:00:00]} 51. Kd2 {[%emt 0:00:00]} Bf7 {[%emt 0:00:00]} 52. Rd6 {[%emt 0:00:00]} Kg7 {[%emt 0:00:00]} 53. Rd7 {[%emt 0:00:00]} Kf6 {[%emt 0:00:00]} 54. Rd6+ {[%emt 0:00:00]} Ke5 1/2-1/2

[Event "94th Tradewise Hastings Congress"]
[Site "Hastings"]
[Date "2019.01.05"]
[Round "9"]
[White "Moore, Graham J"]
[Black "Ratnesan, Ranesh"]
[Result "1-0"]
[ECO "B90"]
[WhiteElo "2235"]
[BlackElo "2055"]
[Annotator "NA"]
[PlyCount "59"]
[EventDate "2018.12.28"]
[EventType "swiss"]
[EventCountry "ENG"]
[SourceTitle "playchess.com"]
[Source "ChessBase"]
[SourceQuality "1"]
[TimeControl "40/6000+30:3000+30"]

1. e4 {[%emt 0:00:00]} c5 {[%emt 0:00:00]} 2. Nf3 {[%emt 0:00:00]} d6 {[%emt 0:00:00]} 3. d4 {[%emt 0:00:00]} cxd4 {[%emt 0:00:04]} 4. Nxd4 {[%emt 0:00:00]} Nf6 {[%emt 0:00:21]} 5. Nc3 {[%emt 0:00:00]} a6 {[%emt 0:00:07]} 6. h3 {[%emt 0:01:55]} e5 {[%emt 0:00:10]} 7. Nde2 {[%emt 0:00:06]} h5 {[%emt 0:00:43]} 8. Bg5 {[%emt 0:00:31]} Nbd7 {[%emt 0:02:49]} 9. Ng3 {[%emt 0:01:36]} Qc7 {[%emt 0:08:55]} 10. Nf5 {[%emt 0:02:00]} b5 {[%emt 0:08:38]} 11. Ne3 {[%emt 0:14:00]} Bb7 {[%emt 0:09:11]} 12. a4 {[%emt 0:01:37]} b4 {[%emt 0:17:17]} 13. Ncd5 {[%emt 0:00:32]} Nxd5 {[%emt 0:01:05]} 14. exd5 {[%emt 0:01:54]} a5 {[%emt 0:16:36]} 15. Bd3 {[%emt 0:05:19]} Be7 {[%emt 0:04:36]} 16. Bxe7 {[%emt 0:01:47]} Kxe7 {[%emt 0:00:09]} 17. O-O {[%emt 0:03:19]} Kf8 {[%emt 0:04:41]} 18. c3 {[%emt 0:02:30]} bxc3 {[%emt 0:03:53]} 19. Rc1 {[%emt 0:01:24]} g6 {[%emt 0:00:39]} 20. Rxc3 {[%emt 0:00:13]} Nc5 {[%emt 0:01:55]} 21. f4 {[%emt 0:04:06]} exf4 {[%emt 0:05:01]} 22. Rxf4 {[%emt 0:00:15]} Kg7 {[%emt 0:00:44]} 23. Bb5 {[%emt 0:05:20]} Bc8 {[%emt 0:03:06]} 24. Qd4+ {[%emt 0:02:44]} Kg8 {[%emt 0:01:06]} 25. Qf6 {[%emt 0:01:33]} Rh7 {[%emt 0:03:06]} 26. Nc4 {[%emt 0:01:10]} Nb7 {[%emt 0:01:58]} 27. Kh1 {[%emt 0:01:04]} Rg7 {[%emt 0:05:07]} 28. Bc6 {[%emt 0:05:10]} Ra6 {[%emt 0:02:08]} 29. Re4 {[%emt 0:02:39]} Ra7 {[%emt 0:06:38]} 30. Re7 {[%emt 0:00:38]} 1-0

[Event "94th Tradewise Hastings Congress"]
[Site "Hastings"]
[Date "2019.01.05"]
[Round "9"]
[White "Willow, Jonah B"]
[Black "Gu, In Jung"]
[Result "1-0"]
[ECO "B06"]
[WhiteElo "2218"]
[BlackElo "1794"]
[Annotator "NA"]
[PlyCount "87"]
[EventDate "2018.12.28"]
[EventType "swiss"]
[EventCountry "ENG"]
[SourceTitle "playchess.com"]
[Source "ChessBase"]
[SourceQuality "1"]
[TimeControl "40/6000+30:3000+30"]

1. Nc3 {[%emt 0:00:00]} g6 {[%emt 0:05:12]} 2. e4 {[%emt 0:00:36]} Bg7 {[%emt 0:00:06]} 3. d4 {[%emt 0:00:04]} d6 {[%emt 0:00:11]} 4. f4 {[%emt 0:00:04]} a6 {[%emt 0:00:04]} 5. Nf3 {[%emt 0:00:10]} b5 {[%emt 0:00:06]} 6. Bd3 {[%emt 0:00:34]} Bb7 {[%emt 0:02:52]} 7. O-O {[%emt 0:01:33]} Nd7 {[%emt 0:04:31]} 8. e5 {[%emt 0:11:24]} e6 {[%emt 0:02:43]} 9. Ne4 {[%emt 0:02:06]} Bxe4 {[%emt 0:01:07]} 10. Bxe4 {[%emt 0:00:06]} d5 {[%emt 0:00:02]} 11. Bd3 {[%emt 0:00:06]} c5 {[%emt 0:00:02]} 12. dxc5 {[%emt 0:04:01]} Nxc5 {[%emt 0:00:40]} 13. Be3 {[%emt 0:00:33]} Nxd3 {[%emt 0:10:17]} 14. Qxd3 {[%emt 0:00:23]} Ne7 {[%emt 0:07:17]} 15. a4 {[%emt 0:00:50]} b4 {[%emt 0:06:48]} 16. a5 {[%emt 0:13:42]} Qd7 {[%emt 0:06:27]} 17. Bc5 {[%emt 0:02:51]} Nc6 {[%emt 0:01:12]} 18. Kh1 {[%emt 0:11:56]} Bf8 {[%emt 0:00:59]} 19. Bxf8 {[%emt 0:01:07]} Kxf8 {[%emt 0:00:49]} 20. Nd2 {[%emt 0:00:12]} h5 {[%emt 0:03:39]} 21. Nc4 {[%emt 0:10:43]} Qd8 {[%emt 0:05:04]} 22. Nb6 {[%emt 0:04:49]} Ra7 {[%emt 0:00:52]} 23. Qe3 {[%emt 0:02:56]} Kg7 {[%emt 0:05:22]} 24. Qc5 {[%emt 0:05:54]} Qc7 {[%emt 0:08:27]} 25. c3 {[%emt 0:07:06]} bxc3 {[%emt 0:00:57]} 26. Qxc3 {[%emt 0:00:26]} Ne7 {[%emt 0:06:27]} 27. Rac1 {[%emt 0:00:47]} Qxc3 {[%emt 0:03:02]} 28. Rxc3 {[%emt 0:00:06]} Rd8 {[%emt 0:00:35]} 29. Rfc1 {[%emt 0:01:43]} Nf5 {[%emt 0:01:52]} 30. Kg1 {[%emt 0:02:12]} Nd4 {[%emt 0:04:04]} 31. Kf2 {[%emt 0:00:48]} Nb5 {[%emt 0:00:27]} 32. Rc8 {[%emt 0:06:41]} Rxc8 {[%emt 0:04:04]} 33. Rxc8 {[%emt 0:00:02]} Rc7 {[%emt 0:01:41]} 34. Rxc7 {[%emt 0:00:21]} Nxc7 {[%emt 0:00:02]} 35. Nd7 {[%emt 0:00:05]} g5 {[%emt 0:10:35]} 36. fxg5 {[%emt 0:02:42]} Kg6 {[%emt 0:00:06]} 37. h4 {[%emt 0:00:03]} Kf5 {[%emt 0:00:08]} 38. Kf3 {[%emt 0:00:39]} Nb5 {[%emt 0:00:13]} 39. Ke3 {[%emt 0:06:06]} Kg4 {[%emt 0:01:12]} 40. Nf8 {[%emt 0:00:49]} Nc7 {[%emt 0:07:47]} 41. b4 {[%emt 1:02:19]} Kxh4 {[%emt 0:14:08]} 42. g6 {[%emt 0:00:00]} fxg6 {[%emt 0:01:19]} 43. Kf4 {[%emt 0:02:38]} g5+ {[%emt 0:03:30] Ke4 [%emt 00:00:52]} 44. Kf3 {[%emt 0:00:00]} 1-0

[Event "94th Tradewise Hastings Congress"]
[Site "Hastings"]
[Date "2019.01.05"]
[Round "9"]
[White "Graham, David B"]
[Black "Larsen, Andreas"]
[Result "1-0"]
[ECO "B00"]
[WhiteElo "2208"]
[BlackElo "1933"]
[Annotator "NA"]
[PlyCount "125"]
[EventDate "2018.12.28"]
[EventType "swiss"]
[EventCountry "ENG"]
[SourceTitle "playchess.com"]
[Source "ChessBase"]
[SourceQuality "1"]
[TimeControl "40/6000+30:3000+30"]

1. e4 {[%emt 0:00:00]} Nc6 {[%emt 0:00:00]} 2. d4 {[%emt 0:00:00]} d5 {[%emt 0:00:00]} 3. e5 {[%emt 0:01:13]} Bf5 {[%emt 0:00:00]} 4. Nf3 {[%emt 0:00:12]} e6 {[%emt 0:03:48]} 5. Be2 {[%emt 0:00:06]} f6 {[%emt 0:01:28]} 6. O-O {[%emt 0:06:46]} fxe5 {[%emt 0:05:41]} 7. dxe5 {[%emt 0:00:04]} Bc5 {[%emt 0:00:43]} 8. Nbd2 {[%emt 0:01:21]} Nb4 {[%emt 0:14:01]} 9. Ne1 {[%emt 0:07:43]} Ne7 {[%emt 0:05:17]} 10. Nb3 {[%emt 0:01:37]} Bb6 {[%emt 0:01:12]} 11. c3 {[%emt 0:05:25]} Na6 {[%emt 0:05:51]} 12. a4 {[%emt 0:05:34]} c5 {[%emt 0:07:35]} 13. a5 {[%emt 0:02:31]} Bc7 {[%emt 0:02:12]} 14. Bxa6 {[%emt 0:00:20]} bxa6 {[%emt 0:00:06]} 15. Nxc5 {[%emt 0:00:14]} Bxe5 {[%emt 0:11:59]} 16. Qa4+ {[%emt 0:00:28]} Kf7 {[%emt 0:00:40]} 17. Nf3 {[%emt 0:00:54]} Bf6 {[%emt 0:04:41]} 18. Be3 {[%emt 0:15:10]} h6 {[%emt 0:15:09]} 19. Rfd1 {[%emt 0:01:41]} Rc8 {[%emt 0:02:43]} 20. Nxa6 {[%emt 0:04:53]} Qd6 {[%emt 0:01:02]} 21. Qb5 {[%emt 0:09:09]} Bg4 {[%emt 0:03:50]} 22. Qb4 {[%emt 0:12:53]} Qxa6 {[%emt 0:01:41]} 23. Qxg4 {[%emt 0:00:04]} Nf5 {[%emt 0:02:27]} 24. Bd4 {[%emt 0:04:44]} Nxd4 {[%emt 0:06:29]} 25. Nxd4 {[%emt 0:01:12]} Rhe8 {[%emt 0:00:41]} 26. Qe2 {[%emt 0:02:19]} Qxe2 {[%emt 0:02:58]} 27. Nxe2 {[%emt 0:00:03]} Rb8 {[%emt 0:00:05]} 28. b4 {[%emt 0:02:46]} Rec8 {[%emt 0:00:16]} 29. Ra3 {[%emt 0:00:17]} Rc4 {[%emt 0:00:19]} 30. f3 {[%emt 0:07:08]} Rbc8 {[%emt 0:07:31]} 31. Rd3 {[%emt 0:00:42]} Ke7 {[%emt 0:00:13]} 32. Kf2 {[%emt 0:01:34]} Kd6 {[%emt 0:00:15]} 33. g3 {[%emt 0:01:48]} Kc6 {[%emt 0:00:17]} 34. Nf4 {[%emt 0:01:44]} Kb5 {[%emt 0:00:23]} 35. Nxe6 {[%emt 0:07:41]} Rxc3 {[%emt 0:00:41]} 36. Rxd5+ {[%emt 0:01:29]} Kxb4 {[%emt 0:00:12]} 37. Rxc3 {[%emt 0:00:17]} Rxc3 {[%emt 0:00:45]} 38. Rd7 {[%emt 0:02:06]} Kxa5 {[%emt 0:00:27]} 39. Rxa7+ {[%emt 0:00:16]} Kb5 {[%emt 0:01:03]} 40. Rf7 {[%emt 0:00:25]} Rc2+ {[%emt 0:00:53]} 41. Kg1 {[%emt 0:51:46]} Kc4 {[%emt 0:07:01]} 42. Nxg7 {[%emt 0:00:00]} Bd4+ {[%emt 0:00:17]} 43. Kh1 {[%emt 0:00:00]} Kd5 {[%emt 0:02:21]} 44. Nf5 {[%emt 0:00:00]} Rc1+ {[%emt 0:00:18]} 45. Kg2 {[%emt 0:00:00]} Rc2+ {[%emt 0:00:05]} 46. Kh3 {[%emt 0:00:00]} Bg1 {[%emt 0:00:15]} 47. Kg4 {[%emt 0:00:00]} Rxh2 {[%emt 0:01:52]} 48. Rh7 {[%emt 0:00:00]} Ke6 {[%emt 0:03:33]} 49. Rxh6+ {[%emt 0:00:00]} Rxh6 {[%emt 0:00:07]} 50. Nxh6 {[%emt 0:00:00]} Kf6 {[%emt 0:00:08]} 51. Nf5 {[%emt 0:00:00]} Bc5 {[%emt 0:00:28]} 52. Nh4 {[%emt 0:00:00]} Ba3 {[%emt 0:00:21]} 53. Ng2 {[%emt 0:00:00]} Bb2 {[%emt 0:00:29]} 54. f4 {[%emt 0:00:00]} Bc3 {[%emt 0:00:32]} 55. Kf3 {[%emt 0:00:00]} Bb2 {[%emt 0:00:12]} 56. g4 {[%emt 0:00:00]} Bc3 {[%emt 0:00:28]} 57. g5+ {[%emt 0:00:00]} Kg6 {[%emt 0:00:22]} 58. Kg4 {[%emt 0:00:00]} Bb2 {[%emt 0:00:29]} 59. f5+ {[%emt 0:00:00]} Kg7 {[%emt 0:00:07]} 60. Nf4 {[%emt 0:00:00]} Bc3 {[%emt 0:00:25]} 61. f6+ {[%emt 0:00:00]} Kf7 {[%emt 0:00:43]} 62. Kf5 {[%emt 0:00:00]} Kg8 {[%emt 0:01:16]} 63. g6 {[%emt 0:00:00]} 1-0

[Event "94th Tradewise Hastings Congress"]
[Site "Hastings"]
[Date "2019.01.05"]
[Round "9"]
[White "Stoyanov, Viktor"]
[Black "Brown, Thomas"]
[Result "1-0"]
[ECO "A40"]
[WhiteElo "2205"]
[BlackElo "2068"]
[Annotator "NA"]
[PlyCount "99"]
[EventDate "2018.12.28"]
[EventType "swiss"]
[EventCountry "ENG"]
[SourceTitle "playchess.com"]
[Source "ChessBase"]
[SourceQuality "1"]
[TimeControl "40/6000+30:3000+30"]

1. d4 {[%emt 0:02:36]} g6 {[%emt 0:00:00]} 2. Nf3 {[%emt 0:00:04]} Bg7 {[%emt 0:00:00]} 3. e4 {[%emt 0:00:04]} d6 {[%emt 0:00:00]} 4. Bd3 {[%emt 0:00:33]} Nf6 {[%emt 0:00:47]} 5. Nbd2 {[%emt 0:00:14]} O-O {[%emt 0:00:21]} 6. O-O {[%emt 0:00:06]} Nc6 {[%emt 0:00:31]} 7. c3 {[%emt 0:00:06]} e5 {[%emt 0:01:14]} 8. dxe5 {[%emt 0:01:17]} Nxe5 {[%emt 0:01:49]} 9. Nxe5 {[%emt 0:00:26]} dxe5 {[%emt 0:00:06]} 10. Nc4 {[%emt 0:00:10]} Qe7 {[%emt 0:02:27]} 11. f3 {[%emt 0:04:02]} Rd8 {[%emt 0:07:09]} 12. Be3 {[%emt 0:05:09]} Be6 {[%emt 0:07:53]} 13. Qe2 {[%emt 0:02:30]} Nd7 {[%emt 0:10:34]} 14. b4 {[%emt 0:00:30]} Bxc4 {[%emt 0:00:26]} 15. Bxc4 {[%emt 0:00:05]} a5 {[%emt 0:06:13]} 16. a3 {[%emt 0:02:03]} axb4 {[%emt 0:04:43]} 17. axb4 {[%emt 0:00:52]} Nf8 {[%emt 0:06:32]} 18. Ra2 {[%emt 0:27:21]} Ne6 {[%emt 0:08:14]} 19. g3 {[%emt 0:01:31]} Kh8 {[%emt 0:07:56]} 20. Rd1 {[%emt 0:04:19]} f5 {[%emt 0:10:27]} 21. Rxd8+ {[%emt 0:03:48]} Rxd8 {[%emt 0:00:36]} 22. Rd2 {[%emt 0:00:11]} Rxd2 {[%emt 0:09:41]} 23. Qxd2 {[%emt 0:00:05]} f4 {[%emt 0:01:16]} 24. Bf2 {[%emt 0:01:18]} Ng5 {[%emt 0:04:11]} 25. Kg2 {[%emt 0:00:35]} fxg3 {[%emt 0:01:17]} 26. hxg3 {[%emt 0:00:38]} Qf6 {[%emt 0:02:43]} 27. Be2 {[%emt 0:01:05]} h6 {[%emt 0:04:11]} 28. Qd7 {[%emt 0:02:08]} Qe6 {[%emt 0:02:55]} 29. Qxe6 {[%emt 0:03:03]} Nxe6 {[%emt 0:00:08]} 30. Bc4 {[%emt 0:00:06]} Ng5 {[%emt 0:02:17]} 31. Bc5 {[%emt 0:01:06]} Bf6 {[%emt 0:02:55]} 32. Bd5 {[%emt 0:01:36]} c6 {[%emt 0:00:56]} 33. Bb3 {[%emt 0:00:46]} Kg7 {[%emt 0:00:32]} 34. Kf2 {[%emt 0:00:13]} h5 {[%emt 0:02:19]} 35. Bc4 {[%emt 0:00:38]} Nf7 {[%emt 0:01:52]} 36. b5 {[%emt 0:03:01]} cxb5 {[%emt 0:00:09]} 37. Bxb5 {[%emt 0:00:06]} Nd8 {[%emt 0:01:23]} 38. Bc4 {[%emt 0:00:17]} g5 {[%emt 0:01:00]} 39. Bd5 {[%emt 0:01:54]} h4 {[%emt 0:00:38]} 40. Kg2 {[%emt 0:00:53]} hxg3 {[%emt 0:00:54]} 41. Kxg3 {[%emt 0:50:05]} Nc6 {[%emt 0:05:24]} 42. Kg4 {[%emt 0:00:00]} Kg6 {[%emt 0:00:10]} 43. Bd6 {[%emt 0:00:00]} Nd8 {[%emt 0:05:42]} 44. Bc5 {[%emt 0:00:00]} Nc6 {[%emt 0:00:12]} 45. Be6 {[%emt 0:00:00]} Be7 {[%emt 0:03:40]} 46. Be3 {[%emt 0:00:00]} Nd8 {[%emt 0:04:22]} 47. Bd7 {[%emt 0:00:00]} Nf7 {[%emt 0:02:58]} 48. Be8 {[%emt 0:00:00]} b5 {[%emt 0:06:11]} 49. Bxf7+ {[%emt 0:00:00]} Kxf7 {[%emt 0:00:14]} 50. Kf5 {[%emt 0:00:00]} 1-0

[Event "94th Tradewise Hastings Congress"]
[Site "Hastings"]
[Date "2019.01.05"]
[Round "9"]
[White "Sumit, Kumar"]
[Black "Miller, Dominic"]
[Result "0-1"]
[ECO "A04"]
[WhiteElo "2179"]
[BlackElo "2061"]
[Annotator "NA"]
[PlyCount "76"]
[EventDate "2018.12.28"]
[EventType "swiss"]
[EventCountry "ENG"]
[SourceTitle "playchess.com"]
[Source "ChessBase"]
[SourceQuality "1"]
[TimeControl "40/6000+30:3000+30"]

1. e4 {[%emt 0:00:00]} c5 {[%emt 0:00:33]} 2. Nf3 {[%emt 0:00:00]} e6 {[%emt 0:00:04]} 3. d3 {[%emt 0:00:04]} Nc6 {[%emt 0:00:05]} 4. g3 {[%emt 0:00:05]} g6 {[%emt 0:00:13]} 5. Bg2 {[%emt 0:00:14]} Bg7 {[%emt 0:00:14]} 6. O-O {[%emt 0:00:10]} Nge7 {[%emt 0:00:39]} 7. Re1 {[%emt 0:00:16]} d6 {[%emt 0:00:15]} 8. c3 {[%emt 0:00:25]} e5 {[%emt 0:00:10]} 9. a3 {[%emt 0:00:33]} O-O {[%emt 0:00:16]} 10. b4 {[%emt 0:00:11]} a6 {[%emt 0:02:09]} 11. Nbd2 {[%emt 0:00:57]} h6 {[%emt 0:07:33]} 12. Bb2 {[%emt 0:05:36]} Be6 {[%emt 0:00:24]} 13. Nf1 {[%emt 0:08:54]} b6 {[%emt 0:10:55]} 14. Ne3 {[%emt 0:07:12]} f5 {[%emt 0:06:49]} 15. exf5 {[%emt 0:10:00]} gxf5 {[%emt 0:00:37]} 16. d4 {[%emt 0:21:48]} cxd4 {[%emt 0:01:36]} 17. cxd4 {[%emt 0:02:29]} e4 {[%emt 0:01:51]} 18. Nh4 {[%emt 0:01:45]} d5 {[%emt 0:04:15]} 19. Bh3 {[%emt 0:02:55]} Qd7 {[%emt 0:01:36]} 20. Neg2 {[%emt 0:04:32]} f4 {[%emt 0:18:10]} 21. Bxe6+ {[%emt 0:00:42]} Qxe6 {[%emt 0:00:57]} 22. Nxf4 {[%emt 0:04:21]} Rxf4 {[%emt 0:00:05]} 23. gxf4 {[%emt 0:00:05]} Rf8 {[%emt 0:00:16]} 24. f5 {[%emt 0:06:05]} Nxf5 {[%emt 0:02:11]} 25. Qg4 {[%emt 0:00:36]} Rf6 {[%emt 0:02:08]} 26. Kh1 {[%emt 0:00:54]} Nxh4 {[%emt 0:03:42]} 27. Qxh4 {[%emt 0:00:08]} Qf5 {[%emt 0:20:03]} 28. Qg3 {[%emt 0:10:33]} Rg6 {[%emt 0:01:18]} 29. Qe3 {[%emt 0:00:26]} Nxd4 {[%emt 0:01:45]} 30. Rg1 {[%emt 0:01:11]} Nc2 {[%emt 0:11:01]} 31. Rxg6 {[%emt 0:00:06]} Qxg6 {[%emt 0:00:08]} 32. Qc1 {[%emt 0:00:36]} e3 {[%emt 0:07:27]} 33. Bxg7 {[%emt 0:02:23]} Qe4+ {[%emt 0:00:06]} 34. Kg1 {[%emt 0:00:08]} Qg4+ {[%emt 0:00:06]} 35. Kh1 {[%emt 0:00:31]} Qf3+ {[%emt 0:00:04]} 36. Kg1 {[%emt 0:00:07]} exf2+ {[%emt 0:00:23]} 37. Kf1 {[%emt 0:00:06]} Ne3+ {[%emt 0:00:22]} 38. Qxe3 {[%emt 0:00:08]} Qxe3 {[%emt 0:00:05]} 0-1

[Event "94th Tradewise Hastings Congress"]
[Site "Hastings"]
[Date "2019.01.05"]
[Round "9"]
[White "Groffen, Hans"]
[Black "Fryer, David W"]
[Result "1-0"]
[ECO "D35"]
[WhiteElo "2120"]
[BlackElo "1932"]
[Annotator "NA"]
[PlyCount "43"]
[EventDate "2018.12.28"]
[EventType "swiss"]
[EventCountry "ENG"]
[SourceTitle "playchess.com"]
[Source "ChessBase"]
[SourceQuality "1"]
[TimeControl "40/6000+30:3000+30"]

1. d4 {[%emt 0:00:00]} d5 {[%emt 0:00:00]} 2. c4 {[%emt 0:00:00]} e6 {[%emt 0:00:00]} 3. Nc3 {[%emt 0:00:00]} Nf6 {[%emt 0:00:00]} 4. cxd5 {[%emt 0:00:00]} exd5 {[%emt 0:00:08]} 5. Bg5 {[%emt 0:00:09]} Bf5 {[%emt 0:00:15]} 6. e3 {[%emt 0:03:51]} c6 {[%emt 0:00:16]} 7. Qf3 {[%emt 0:00:21]} Bg6 {[%emt 0:00:14]} 8. Bxf6 {[%emt 0:00:07]} Qxf6 {[%emt 0:00:16]} 9. Qxf6 {[%emt 0:00:06]} gxf6 {[%emt 0:00:11]} 10. Nf3 {[%emt 0:00:53]} Nd7 {[%emt 0:01:39]} 11. Nh4 {[%emt 0:00:31]} O-O-O {[%emt 0:01:29]} 12. f4 {[%emt 0:01:00]} h5 {[%emt 0:02:01]} 13. a3 {[%emt 0:04:42]} Re8 {[%emt 0:04:38]} 14. Kf2 {[%emt 0:00:19]} Nb6 {[%emt 0:02:44]} 15. b4 {[%emt 0:01:15]} Kb8 {[%emt 0:04:20]} 16. Be2 {[%emt 0:01:38]} Be4 {[%emt 0:04:30]} 17. Nxe4 {[%emt 0:00:38]} dxe4 {[%emt 0:00:39]} 18. Nf5 {[%emt 0:00:28]} h4 {[%emt 0:02:08]} 19. g4 {[%emt 0:01:45]} Nd5 {[%emt 0:02:54]} 20. h3 {[%emt 0:01:00]} Ne7 {[%emt 0:01:58]} 21. Nd6 {[%emt 0:00:19]} Nd5 {[%emt 0:00:19]} 22. Nxe8 {[%emt 0:00:18]} 1-0

[Event "94th Tradewise Hastings Congress"]
[Site "Hastings"]
[Date "2019.01.05"]
[Round "9"]
[White "Rolvag, Mikael"]
[Black "Salmons, Calum"]
[Result "1-0"]
[ECO "B26"]
[WhiteElo "2107"]
[BlackElo "1905"]
[Annotator "NA"]
[PlyCount "80"]
[EventDate "2018.12.28"]
[EventType "swiss"]
[EventCountry "ENG"]
[SourceTitle "playchess.com"]
[Source "ChessBase"]
[SourceQuality "1"]
[TimeControl "40/6000+30:3000+30"]

1. e4 {[%emt 0:00:00]} c5 {[%emt 0:00:00]} 2. Nc3 {[%emt 0:00:00]} Nc6 {[%emt 0:00:00]} 3. g3 {[%emt 0:00:00]} g6 {[%emt 0:00:09]} 4. Bg2 {[%emt 0:00:00]} Bg7 {[%emt 0:00:08]} 5. d3 {[%emt 0:00:00]} d6 {[%emt 0:00:15]} 6. Be3 {[%emt 0:01:22]} e6 {[%emt 0:00:59]} 7. Qd2 {[%emt 0:02:18]} Nge7 {[%emt 0:02:57]} 8. Bh6 {[%emt 0:04:06]} O-O {[%emt 0:05:46]} 9. h4 {[%emt 0:01:28]} f6 {[%emt 0:02:24]} 10. Bxg7 {[%emt 0:02:02]} Kxg7 {[%emt 0:00:13]} 11. Nge2 {[%emt 0:00:02]} d5 {[%emt 0:04:57]} 12. exd5 {[%emt 0:02:53]} Nxd5 {[%emt 0:01:05]} 13. O-O {[%emt 0:01:19]} Nce7 {[%emt 0:10:56]} 14. Ne4 {[%emt 0:03:43]} Qc7 {[%emt 0:06:48]} 15. c4 {[%emt 0:06:02]} Nb4 {[%emt 0:01:25]} 16. a3 {[%emt 0:02:49]} Na6 {[%emt 0:05:29]} 17. b4 {[%emt 0:01:38]} cxb4 {[%emt 0:03:32]} 18. axb4 {[%emt 0:01:20]} e5 {[%emt 0:05:02]} 19. Ra3 {[%emt 0:18:29]} Bf5 {[%emt 0:08:21]} 20. Rfa1 {[%emt 0:07:02]} Rad8 {[%emt 0:07:17]} 21. N2c3 {[%emt 0:14:17]} Bxe4 {[%emt 0:13:04]} 22. Nxe4 {[%emt 0:01:25]} f5 {[%emt 0:03:11]} 23. Ng5 {[%emt 0:00:47]} Rf6 {[%emt 0:01:02]} 24. Qb2 {[%emt 0:02:44]} h6 {[%emt 0:11:02]} 25. Nf3 {[%emt 0:00:43]} e4 {[%emt 0:00:53]} 26. dxe4 {[%emt 0:01:15]} Qxc4 {[%emt 0:01:15]} 27. b5 {[%emt 0:04:08]} Nc7 {[%emt 0:05:08]} 28. Rc1 {[%emt 0:02:16]} Qxb5 {[%emt 0:01:13]} 29. Rb3 {[%emt 0:00:30]} Qa5 {[%emt 0:01:53]} 30. Rxb7 {[%emt 0:00:26]} Rc8 {[%emt 0:01:23]} 31. exf5 {[%emt 0:03:35]} gxf5 {[%emt 0:02:20]} 32. Ra1 {[%emt 0:05:00]} Qc5 {[%emt 0:01:30]} 33. Raxa7 {[%emt 0:00:10]} Ned5 {[%emt 0:01:17]} 34. Qe5 {[%emt 0:01:51]} Qc1+ {[%emt 0:01:07]} 35. Kh2 {[%emt 0:00:17]} Kg6 {[%emt 0:02:11]} 36. Qd4 {[%emt 0:02:01]} Re6 {[%emt 0:00:45]} 37. Ne5+ {[%emt 0:00:36]} Rxe5 {[%emt 0:00:34]} 38. Qxe5 {[%emt 0:00:14]} Re8 {[%emt 0:00:23]} 39. Ra6+ {[%emt 0:01:10]} Kh7 {[%emt 0:00:54]} 40. Qxe8 {[%emt 0:00:42]} Ne7 {[%emt 0:00:31]} 1-0